[Event "November 21 Early 2023"]
[Site "https://www.chess.com"]
[Date "2023.11.21"]
[Round "8"]
[White "Taboas Rodriguez, Daniel"]
[Black "Sychev, Klementy"]
[Result "0-1"]
[Board "43"]
[TimeControl "180+1"]
[WhiteFideId "2208466"]
[BlackFideId "4114060"]
[WhiteElo "2365"]
[BlackElo "2583"]
[WhiteTeam "ESP"]
[BlackTeam "FID"]
[WhiteClock "0:00:00"]
[BlackClock "0:00:05"]

1. d4 {[%clk 0:03:00]}  Nf6 {[%clk 0:02:59]} 2. Nf3 {[%clk 0:03:00]}  g6 {[%clk 0:03:00]} 3. c4 {[%clk 0:03:00]}  Bg7 {[%clk 0:03:00]} 4. Nc3 {[%clk 0:03:00]}  O-O {[%clk 0:03:01]} 5. e4 {[%clk 0:03:00]}  d6 {[%clk 0:03:01]} 6. Be2 {[%clk 0:03:01]}  e5 {[%clk 0:03:01]} 7. dxe5 {[%clk 0:03:02]}  dxe5 {[%clk 0:03:00]} 8. Qxd8 {[%clk 0:03:03]}  Rxd8 {[%clk 0:03:00]} 9. Bg5 {[%clk 0:03:04]}  Re8 {[%clk 0:02:52]} 10. Nd5 {[%clk 0:03:04]}  Nxd5 {[%clk 0:02:51]} 11. cxd5 {[%clk 0:03:05]}  c6 {[%clk 0:02:52]} 12. Bc4 {[%clk 0:03:05]}  cxd5 {[%clk 0:02:50]} 13. Bxd5 {[%clk 0:03:06]}  Nd7 {[%clk 0:02:49]} 14. Nd2 {[%clk 0:03:06]}  Nb6 {[%clk 0:02:41]} 15. Bb3 {[%clk 0:03:05]}  Be6 {[%clk 0:02:35]} 16. Ke2 {[%clk 0:03:05]}  Rac8 {[%clk 0:02:28]} 17. Rhc1 {[%clk 0:03:04]}  Bd7 {[%clk 0:02:27]} 18. Be3 {[%clk 0:02:56]}  Bb5+ {[%clk 0:02:27]} 19. Ke1 {[%clk 0:02:54]}  Bf8 {[%clk 0:02:25]} 20. a3 {[%clk 0:02:40]}  Kg7 {[%clk 0:02:21]} 21. Bxb6 {[%clk 0:02:35]}  axb6 {[%clk 0:02:20]} 22. Bc4 {[%clk 0:02:35]}  Ba4 {[%clk 0:02:09]} 23. Bd5 {[%clk 0:02:32]}  Bc6 {[%clk 0:01:54]} 24. Nc4 {[%clk 0:02:22]}  Bc5 {[%clk 0:01:50]} 25. Bxc6 {[%clk 0:02:13]}  Rxc6 {[%clk 0:01:45]} 26. b3 {[%clk 0:00:55]}  Bd4 {[%clk 0:01:22]} 27. Rab1 {[%clk 0:00:55]}  b5 {[%clk 0:01:11]} 28. Na5 {[%clk 0:00:54]}  Rf6 {[%clk 0:01:00]} 29. f3 {[%clk 0:00:52]}  Ra8 {[%clk 0:00:58]} 30. b4 {[%clk 0:00:23]}  b6 {[%clk 0:00:56]} 31. Nb3 {[%clk 0:00:22]}  Rxa3 {[%clk 0:00:48]} 32. Nxd4 {[%clk 0:00:22]}  exd4 {[%clk 0:00:49]} 33. Rd1 {[%clk 0:00:23]}  Rd6 {[%clk 0:00:36]} 34. Rd2 {[%clk 0:00:22]}  Rc3 {[%clk 0:00:25]} 35. Ke2 {[%clk 0:00:20]}  Kf6 {[%clk 0:00:22]} 36. f4 {[%clk 0:00:20]}  Re3+ {[%clk 0:00:21]} 37. Kf2 {[%clk 0:00:20]}  Rxe4 {[%clk 0:00:21]} 38. g3 {[%clk 0:00:19]}  h5 {[%clk 0:00:19]} 39. Rbd1 {[%clk 0:00:17]}  Kf5 {[%clk 0:00:14]} 40. Kf3 {[%clk 0:00:17]}  Re3+ {[%clk 0:00:10]} 41. Kf2 {[%clk 0:00:17]}  Ke4 {[%clk 0:00:10]} 42. Rc1 {[%clk 0:00:15]}  h4 {[%clk 0:00:05]} 43. Rc8 {[%clk 0:00:14]}  hxg3+ {[%clk 0:00:05]} 44. hxg3 {[%clk 0:00:13]}  Kd5 {[%clk 0:00:06]} 45. Rf8 {[%clk 0:00:12]}  Re7 {[%clk 0:00:05]} 46. Rc8 {[%clk 0:00:11]}  Red7 {[%clk 0:00:04]} 47. Kf3 {[%clk 0:00:10]}  Re7 {[%clk 0:00:04]} 48. Rd3 {[%clk 0:00:10]}  Re1 {[%clk 0:00:04]} 49. Rc7 {[%clk 0:00:09]}  f5 {[%clk 0:00:04]} 50. Rc8 {[%clk 0:00:08]}  Rb1 {[%clk 0:00:04]} 51. Re8 {[%clk 0:00:05]}  Rxb4 {[%clk 0:00:04]} 52. Re5+ {[%clk 0:00:06]}  Kc4 {[%clk 0:00:04]} 53. Rd1 {[%clk 0:00:07]}  Rb3+ {[%clk 0:00:05]} 54. Kf2 {[%clk 0:00:06]}  b4 {[%clk 0:00:05]} 55. Re2 {[%clk 0:00:04]}  Rc3 {[%clk 0:00:05]} 56. Rb2 {[%clk 0:00:04]}  d3 {[%clk 0:00:06]} 57. Ke3 {[%clk 0:00:04]}  b3 {[%clk 0:00:05]} 58. Rdd2 {[%clk 0:00:00]}  Rc2 {[%clk 0:00:05]} 0-1

[Event "November 21 Early 2023"]
[Site "https://www.chess.com"]
[Date "2023.11.21"]
[Round "8"]
[White "Skvortsov, Andrei"]
[Black "Redzisz, Michal"]
[Result "1-0"]
[Board "50"]
[TimeControl "180+1"]
[WhiteFideId "24108600"]
[BlackFideId "21816107"]
[WhiteElo "2357"]
[BlackElo "2068"]
[WhiteTeam "MNE"]
[BlackTeam "POL"]
[WhiteClock "0:01:55"]
[BlackClock "0:00:06"]

1. e4 {[%clk 0:03:00]}  c5 {[%clk 0:02:56]} 2. d4 {[%clk 0:03:01]}  cxd4 {[%clk 0:02:54]} 3. Qxd4 {[%clk 0:03:01]}  Nc6 {[%clk 0:02:53]} 4. Qd3 {[%clk 0:03:02]}  g6 {[%clk 0:02:50]} 5. Nc3 {[%clk 0:03:03]}  Bg7 {[%clk 0:02:50]} 6. Nf3 {[%clk 0:03:03]}  d6 {[%clk 0:02:50]} 7. Be2 {[%clk 0:03:04]}  Nf6 {[%clk 0:02:50]} 8. O-O {[%clk 0:03:05]}  O-O {[%clk 0:02:50]} 9. Nd5 {[%clk 0:03:05]}  Be6 {[%clk 0:02:34]} 10. c3 {[%clk 0:03:05]}  Rc8 {[%clk 0:02:29]} 11. Bg5 {[%clk 0:02:59]}  Qe8 {[%clk 0:02:00]} 12. Rfd1 {[%clk 0:02:51]}  Bxd5 {[%clk 0:01:53]} 13. exd5 {[%clk 0:02:51]}  Ne5 {[%clk 0:01:53]} 14. Qe3 {[%clk 0:02:47]}  Nc4 {[%clk 0:01:31]} 15. Bxc4 {[%clk 0:02:46]}  Rxc4 {[%clk 0:01:32]} 16. Qxa7 {[%clk 0:02:45]}  Qb5 {[%clk 0:01:31]} 17. Bxf6 {[%clk 0:02:32]}  Bxf6 {[%clk 0:01:32]} 18. Rd2 {[%clk 0:02:30]}  b6 {[%clk 0:00:52]} 19. a4 {[%clk 0:02:28]}  Qb3 {[%clk 0:00:36]} 20. h3 {[%clk 0:02:28]}  Rfc8 {[%clk 0:00:23]} 21. a5 {[%clk 0:02:26]}  bxa5 {[%clk 0:00:21]} 22. Rxa5 {[%clk 0:02:21]}  Rf4 {[%clk 0:00:20]} 23. Qe3 {[%clk 0:02:18]}  Qc4 {[%clk 0:00:20]} 24. Qd3 {[%clk 0:02:15]}  Qc7 {[%clk 0:00:17]} 25. Ra6 {[%clk 0:02:08]}  Qd7 {[%clk 0:00:16]} 26. Ra1 {[%clk 0:02:03]}  g5 {[%clk 0:00:16]} 27. g3 {[%clk 0:02:01]}  Rfc4 {[%clk 0:00:15]} 28. Kg2 {[%clk 0:02:01]}  h5 {[%clk 0:00:14]} 29. Nh2 {[%clk 0:01:59]}  g4 {[%clk 0:00:11]} 30. h4 {[%clk 0:01:59]}  Be5 {[%clk 0:00:09]} 31. Nf1 {[%clk 0:02:00]}  Qb7 {[%clk 0:00:08]} 32. Ne3 {[%clk 0:01:59]}  R4c5 {[%clk 0:00:08]} 33. Qf5 {[%clk 0:01:56]}  e6 {[%clk 0:00:08]} 34. Qxh5 {[%clk 0:01:55]}  f5 {[%clk 0:00:08]} 35. Qg6+ {[%clk 0:01:55]}  Bg7 {[%clk 0:00:08]} 36. Qxe6+ {[%clk 0:01:56]}  Kh8 {[%clk 0:00:08]} 37. Qxf5 {[%clk 0:01:55]}  Re8 {[%clk 0:00:06]} 38. Qh5+ {[%clk 0:01:55]} 1-0

[Event "November 21 Early 2023"]
[Site "https://www.chess.com"]
[Date "2023.11.21"]
[Round "8"]
[White "Djordjevic, Vuk"]
[Black "Do Nascimento,Christian Almeida"]
[Result "0-1"]
[Board "51"]
[TimeControl "180+1"]
[WhiteFideId "902098"]
[BlackFideId "2143801"]
[WhiteElo "2425"]
[BlackElo "2118"]
[WhiteTeam "SRB"]
[BlackTeam "BRA"]
[WhiteClock "0:00:02"]
[BlackClock "0:00:09"]

1. e4 {[%clk 0:03:00]}  c5 {[%clk 0:00:40]} 2. Nc3 {[%clk 0:00:40]}  g6 {[%clk 0:00:40]} 3. g3 {[%clk 0:00:41]}  Bg7 {[%clk 0:00:40]} 4. Bg2 {[%clk 0:00:41]}  d6 {[%clk 0:00:41]} 5. d3 {[%clk 0:00:42]}  Nf6 {[%clk 0:00:41]} 6. h3 {[%clk 0:00:41]}  O-O {[%clk 0:00:42]} 7. Be3 {[%clk 0:00:40]}  Nc6 {[%clk 0:00:42]} 8. Qd2 {[%clk 0:00:40]}  Rb8 {[%clk 0:00:42]} 9. Bh6 {[%clk 0:00:40]}  b5 {[%clk 0:00:42]} 10. Bxg7 {[%clk 0:00:39]}  Kxg7 {[%clk 0:00:42]} 11. f4 {[%clk 0:00:39]}  Nd4 {[%clk 0:00:42]} 12. Nd1 {[%clk 0:00:39]}  b4 {[%clk 0:00:42]} 13. c3 {[%clk 0:00:40]}  bxc3 {[%clk 0:00:42]} 14. bxc3 {[%clk 0:00:41]}  Ne6 {[%clk 0:00:35]} 15. f5 {[%clk 0:00:37]}  Nc7 {[%clk 0:00:34]} 16. g4 {[%clk 0:00:37]}  e6 {[%clk 0:00:28]} 17. Ne3 {[%clk 0:00:35]}  exf5 {[%clk 0:00:20]} 18. gxf5 {[%clk 0:00:34]}  Re8 {[%clk 0:00:20]} 19. fxg6 {[%clk 0:00:23]}  hxg6 {[%clk 0:00:20]} 20. Ne2 {[%clk 0:00:24]}  d5 {[%clk 0:00:20]} 21. Nxd5 {[%clk 0:00:19]}  Ncxd5 {[%clk 0:00:20]} 22. exd5 {[%clk 0:00:20]}  Nxd5 {[%clk 0:00:19]} 23. O-O {[%clk 0:00:12]}  Ne3 {[%clk 0:00:20]} 24. Rf2 {[%clk 0:00:11]}  Bf5 {[%clk 0:00:13]} 25. d4 {[%clk 0:00:10]}  Nxg2 {[%clk 0:00:12]} 26. Kxg2 {[%clk 0:00:10]}  Qd5+ {[%clk 0:00:12]} 27. Kh2 {[%clk 0:00:10]}  Qd6+ {[%clk 0:00:11]} 28. Ng3 {[%clk 0:00:05]}  Rh8 {[%clk 0:00:08]} 29. Rxf5 {[%clk 0:00:06]}  gxf5 {[%clk 0:00:08]} 30. Qg5+ {[%clk 0:00:06]}  Qg6 {[%clk 0:00:08]} 31. Nxf5+ {[%clk 0:00:06]}  Kf8 {[%clk 0:00:09]} 32. Qe7+ {[%clk 0:00:01]}  Kg8 {[%clk 0:00:09]} 33. Rg1 {[%clk 0:00:02]}  Rb2+ {[%clk 0:00:09]} 34. Kh1 {[%clk 0:00:02]}  Rxh3# {[%clk 0:00:09]} 0-1

[Event "November 21 Early 2023"]
[Site "https://www.chess.com"]
[Date "2023.11.21"]
[Round "8"]
[White "De Silva, L M S T"]
[Black "ploxoi"]
[Result "1-0"]
[Board "53"]
[TimeControl "180+1"]
[WhiteFideId "9953698"]
[WhiteElo "2372"]
[BlackElo "2447"]
[WhiteTeam "SRI"]
[WhiteClock "0:00:53"]
[BlackClock "0:01:17"]

1. Nf3 {[%clk 0:02:58]}  d5 {[%clk 0:03:00]} 2. b3 {[%clk 0:02:59]}  Nf6 {[%clk 0:02:58]} 3. Bb2 {[%clk 0:03:00]}  c5 {[%clk 0:02:58]} 4. e3 {[%clk 0:03:00]}  a6 {[%clk 0:02:59]} 5. d4 {[%clk 0:03:00]}  Nc6 {[%clk 0:02:58]} 6. Nbd2 {[%clk 0:02:59]}  Bf5 {[%clk 0:02:57]} 7. Be2 {[%clk 0:02:58]}  h6 {[%clk 0:02:58]} 8. O-O {[%clk 0:02:58]}  e6 {[%clk 0:02:58]} 9. c4 {[%clk 0:02:58]}  cxd4 {[%clk 0:02:57]} 10. Nxd4 {[%clk 0:02:58]}  Nxd4 {[%clk 0:02:57]} 11. Bxd4 {[%clk 0:02:59]}  Bg6 {[%clk 0:02:54]} 12. cxd5 {[%clk 0:02:56]}  Nxd5 {[%clk 0:02:54]} 13. Nc4 {[%clk 0:02:54]}  Rc8 {[%clk 0:02:51]} 14. Ne5 {[%clk 0:02:53]}  Bh7 {[%clk 0:02:48]} 15. Bh5 {[%clk 0:02:30]}  Rc7 {[%clk 0:02:30]} 16. Qf3 {[%clk 0:02:24]}  Nf6 {[%clk 0:02:19]} 17. Bb6 {[%clk 0:02:11]}  Nxh5 {[%clk 0:02:10]} 18. Qxh5 {[%clk 0:02:11]}  Bd6 {[%clk 0:02:08]} 19. Rad1 {[%clk 0:02:05]}  O-O {[%clk 0:02:04]} 20. Nc4 {[%clk 0:01:56]}  Qf6 {[%clk 0:01:44]} 21. Rxd6 {[%clk 0:01:45]}  Rcc8 {[%clk 0:01:43]} 22. Rfd1 {[%clk 0:01:36]}  Bc2 {[%clk 0:01:40]} 23. Rc1 {[%clk 0:01:17]}  Be4 {[%clk 0:01:40]} 24. Bd4 {[%clk 0:01:09]}  Qe7 {[%clk 0:01:38]} 25. Qe5 {[%clk 0:01:00]}  f6 {[%clk 0:01:29]} 26. Qxe6+ {[%clk 0:00:58]}  Qxe6 {[%clk 0:01:28]} 27. Rxe6 {[%clk 0:00:59]}  Bf5 {[%clk 0:01:25]} 28. Rb6 {[%clk 0:00:59]}  Be4 {[%clk 0:01:23]} 29. f3 {[%clk 0:00:58]}  Bd5 {[%clk 0:01:21]} 30. e4 {[%clk 0:00:57]}  Bc6 {[%clk 0:01:22]} 31. Na5 {[%clk 0:00:56]}  Rfd8 {[%clk 0:01:21]} 32. Nxc6 {[%clk 0:00:54]}  Rxd4 {[%clk 0:01:17]} 33. Ne7+ {[%clk 0:00:53]} 1-0

[Event "November 21 Early 2023"]
[Site "https://www.chess.com"]
[Date "2023.11.21"]
[Round "8"]
[White "Aradhya, Garg"]
[Black "Demchenko, Anton"]
[Result "0-1"]
[Board "54"]
[TimeControl "180+1"]
[WhiteFideId "25006746"]
[BlackFideId "4160258"]
[WhiteElo "2323"]
[BlackElo "2545"]
[WhiteTeam "IND"]
[BlackTeam "SLO"]
[WhiteClock "0:00:03"]
[BlackClock "0:00:10"]

1. d4 {[%clk 0:03:00]}  Nf6 {[%clk 0:02:57]} 2. c4 {[%clk 0:03:01]}  d6 {[%clk 0:02:56]} 3. Nf3 {[%clk 0:03:00]}  Nc6 {[%clk 0:02:56]} 4. Nc3 {[%clk 0:03:00]}  e5 {[%clk 0:02:56]} 5. Bg5 {[%clk 0:02:58]}  h6 {[%clk 0:02:56]} 6. Bh4 {[%clk 0:02:49]}  exd4 {[%clk 0:02:56]} 7. Nxd4 {[%clk 0:02:48]}  Nxd4 {[%clk 0:02:55]} 8. Qxd4 {[%clk 0:02:48]}  g5 {[%clk 0:02:55]} 9. Bg3 {[%clk 0:02:47]}  Bg7 {[%clk 0:02:56]} 10. h4 {[%clk 0:02:44]}  g4 {[%clk 0:02:49]} 11. h5 {[%clk 0:02:44]}  O-O {[%clk 0:02:31]} 12. Qd2 {[%clk 0:02:24]}  Bf5 {[%clk 0:02:27]} 13. e3 {[%clk 0:02:24]}  Ne4 {[%clk 0:02:22]} 14. Nxe4 {[%clk 0:02:23]}  Bxe4 {[%clk 0:02:23]} 15. Rh4 {[%clk 0:01:54]}  f5 {[%clk 0:02:15]} 16. O-O-O {[%clk 0:01:53]}  a5 {[%clk 0:02:11]} 17. f3 {[%clk 0:01:38]}  gxf3 {[%clk 0:02:07]} 18. gxf3 {[%clk 0:01:38]}  Bxf3 {[%clk 0:02:08]} 19. Be2 {[%clk 0:01:39]}  Bxe2 {[%clk 0:01:56]} 20. Qxe2 {[%clk 0:01:38]}  a4 {[%clk 0:01:56]} 21. a3 {[%clk 0:01:31]}  Qf6 {[%clk 0:01:46]} 22. Rhd4 {[%clk 0:01:24]}  Qe6 {[%clk 0:01:34]} 23. R4d2 {[%clk 0:01:12]}  Ra5 {[%clk 0:01:30]} 24. Bf4 {[%clk 0:01:11]}  Rc5 {[%clk 0:01:24]} 25. Rd5 {[%clk 0:01:10]}  b6 {[%clk 0:01:24]} 26. Kb1 {[%clk 0:01:02]}  Qe4+ {[%clk 0:01:22]} 27. Ka2 {[%clk 0:01:01]}  Qxc4+ {[%clk 0:01:18]} 28. Qxc4 {[%clk 0:01:01]}  Rxc4 {[%clk 0:01:19]} 29. Rg1 {[%clk 0:01:01]}  Kh7 {[%clk 0:01:19]} 30. Rd2 {[%clk 0:01:02]}  b5 {[%clk 0:01:08]} 31. Rdg2 {[%clk 0:01:01]}  Rf7 {[%clk 0:01:08]} 32. Rg6 {[%clk 0:01:01]}  b4 {[%clk 0:01:00]} 33. axb4 {[%clk 0:00:46]}  Rxb4 {[%clk 0:00:57]} 34. R1g2 {[%clk 0:00:46]}  Re7 {[%clk 0:00:45]} 35. Rc2 {[%clk 0:00:46]}  Rbe4 {[%clk 0:00:21]} 36. Ka3 {[%clk 0:00:39]}  Rf7 {[%clk 0:00:19]} 37. Rc6 {[%clk 0:00:36]}  Bf8 {[%clk 0:00:19]} 38. Ra6 {[%clk 0:00:35]}  d5+ {[%clk 0:00:08]} 39. Ka2 {[%clk 0:00:35]}  d4 {[%clk 0:00:08]} 40. Bxh6 {[%clk 0:00:23]}  dxe3 {[%clk 0:00:09]} 41. Bxf8 {[%clk 0:00:23]}  Rxf8 {[%clk 0:00:10]} 42. Rh6+ {[%clk 0:00:17]}  Kg8 {[%clk 0:00:10]} 43. Rag6+ {[%clk 0:00:17]}  Kf7 {[%clk 0:00:11]} 44. Rh7+ {[%clk 0:00:15]}  Ke8 {[%clk 0:00:12]} 45. Rxc7 {[%clk 0:00:16]}  Re7 {[%clk 0:00:06]} 46. Rc8+ {[%clk 0:00:05]}  Kf7 {[%clk 0:00:07]} 47. Rf6+ {[%clk 0:00:03]}  Kxf6 {[%clk 0:00:07]} 48. Rxf8+ {[%clk 0:00:04]}  Kg5 {[%clk 0:00:08]} 49. Rg8+ {[%clk 0:00:04]}  Kxh5 {[%clk 0:00:08]} 50. Rg1 {[%clk 0:00:05]}  e2 {[%clk 0:00:08]} 51. Re1 {[%clk 0:00:05]}  f4 {[%clk 0:00:09]} 52. Ka3 {[%clk 0:00:04]}  f3 {[%clk 0:00:09]} 53. Kxa4 {[%clk 0:00:05]}  f2 {[%clk 0:00:09]} 54. Rxe2 {[%clk 0:00:05]}  Rxe2 {[%clk 0:00:09]} 55. b4 {[%clk 0:00:03]}  f1=Q {[%clk 0:00:10]} 0-1

[Event "November 21 Early 2023"]
[Site "https://www.chess.com"]
[Date "2023.11.21"]
[Round "8"]
[White "Bobomurodova, Maftuna"]
[Black "AlmasRakhmatullaev"]
[Result "1/2-1/2"]
[Board "56"]
[TimeControl "180+1"]
[WhiteFideId "14207400"]
[WhiteElo "1814"]
[BlackElo "2843"]
[WhiteTeam "UZB"]
[WhiteClock "0:00:17"]
[BlackClock "0:00:01"]

1. e4 {[%clk 0:02:46]}  c5 {[%clk 0:02:58]} 2. Nf3 {[%clk 0:02:45]}  e6 {[%clk 0:02:56]} 3. Qe2 {[%clk 0:02:31]}  Nc6 {[%clk 0:02:55]} 4. g3 {[%clk 0:02:32]}  Nge7 {[%clk 0:02:53]} 5. Bg2 {[%clk 0:02:32]}  g6 {[%clk 0:02:54]} 6. O-O {[%clk 0:02:32]}  Bg7 {[%clk 0:02:54]} 7. c3 {[%clk 0:02:32]}  O-O {[%clk 0:02:53]} 8. Rd1 {[%clk 0:02:30]}  d5 {[%clk 0:02:51]} 9. e5 {[%clk 0:02:30]}  d4 {[%clk 0:02:51]} 10. d3 {[%clk 0:02:29]}  b6 {[%clk 0:02:45]} 11. Nbd2 {[%clk 0:02:26]}  Qc7 {[%clk 0:02:42]} 12. Re1 {[%clk 0:02:12]}  dxc3 {[%clk 0:02:34]} 13. bxc3 {[%clk 0:02:12]}  Ba6 {[%clk 0:02:34]} 14. Nc4 {[%clk 0:02:04]}  Nd5 {[%clk 0:02:29]} 15. Qc2 {[%clk 0:01:58]}  b5 {[%clk 0:02:16]} 16. Ne3 {[%clk 0:01:47]}  Rad8 {[%clk 0:02:09]} 17. d4 {[%clk 0:01:39]}  cxd4 {[%clk 0:01:55]} 18. cxd4 {[%clk 0:01:36]}  Ndb4 {[%clk 0:01:54]} 19. Qc3 {[%clk 0:01:29]}  Nd5 {[%clk 0:01:27]} 20. Qc2 {[%clk 0:01:28]}  Qb6 {[%clk 0:01:24]} 21. Bb2 {[%clk 0:01:24]}  Ncb4 {[%clk 0:01:18]} 22. Qb3 {[%clk 0:01:21]}  Bb7 {[%clk 0:01:16]} 23. a3 {[%clk 0:01:19]}  Nxe3 {[%clk 0:01:06]} 24. fxe3 {[%clk 0:01:12]}  Nc6 {[%clk 0:01:05]} 25. Ng5 {[%clk 0:01:04]}  Na5 {[%clk 0:00:59]} 26. Qc2 {[%clk 0:01:04]}  Rc8 {[%clk 0:00:55]} 27. Qf2 {[%clk 0:01:04]}  Bxg2 {[%clk 0:00:49]} 28. Qxg2 {[%clk 0:01:02]}  Nc4 {[%clk 0:00:48]} 29. Bc3 {[%clk 0:01:02]}  a5 {[%clk 0:00:47]} 30. Ne4 {[%clk 0:01:02]}  b4 {[%clk 0:00:46]} 31. axb4 {[%clk 0:01:01]}  axb4 {[%clk 0:00:47]} 32. Rab1 {[%clk 0:01:01]}  b3 {[%clk 0:00:40]} 33. Qf2 {[%clk 0:00:56]}  Na3 {[%clk 0:00:33]} 34. Rb2 {[%clk 0:00:52]}  Rfd8 {[%clk 0:00:19]} 35. Rc1 {[%clk 0:00:50]}  Nc4 {[%clk 0:00:15]} 36. Rbb1 {[%clk 0:00:48]}  Rb8 {[%clk 0:00:14]} 37. Nd2 {[%clk 0:00:46]}  Nxd2 {[%clk 0:00:14]} 38. Qxd2 {[%clk 0:00:46]}  Qb5 {[%clk 0:00:10]} 39. Rb2 {[%clk 0:00:45]}  Bxe5 {[%clk 0:00:09]} 40. Rcb1 {[%clk 0:00:44]}  Qc4 {[%clk 0:00:08]} 41. Ba5 {[%clk 0:00:40]}  Rd5 {[%clk 0:00:08]} 42. Qc3 {[%clk 0:00:33]}  Qa6 {[%clk 0:00:04]} 43. Rxb3 {[%clk 0:00:30]}  Rc8 {[%clk 0:00:04]} 44. Qb2 {[%clk 0:00:28]}  Bxd4 {[%clk 0:00:02]} 45. exd4 {[%clk 0:00:26]}  Qxa5 {[%clk 0:00:03]} 46. Rb8 {[%clk 0:00:26]}  Rxb8 {[%clk 0:00:03]} 47. Qxb8+ {[%clk 0:00:26]}  Qd8 {[%clk 0:00:04]} 48. Qxd8+ {[%clk 0:00:24]}  Rxd8 {[%clk 0:00:05]} 49. Rd1 {[%clk 0:00:24]}  e5 {[%clk 0:00:05]} 50. d5 {[%clk 0:00:24]}  f5 {[%clk 0:00:06]} 51. Kf2 {[%clk 0:00:25]}  Kf7 {[%clk 0:00:06]} 52. Ke3 {[%clk 0:00:25]}  Kf6 {[%clk 0:00:07]} 53. h3 {[%clk 0:00:25]}  Rd7 {[%clk 0:00:07]} 54. Rd2 {[%clk 0:00:25]}  h6 {[%clk 0:00:08]} 55. Rd1 {[%clk 0:00:26]}  Rd6 {[%clk 0:00:08]} 56. Rd2 {[%clk 0:00:26]}  g5 {[%clk 0:00:09]} 57. Rd1 {[%clk 0:00:26]}  Rd7 {[%clk 0:00:09]} 58. Rd2 {[%clk 0:00:26]}  Ke7 {[%clk 0:00:10]} 59. Rf2 {[%clk 0:00:23]}  Rxd5 {[%clk 0:00:05]} 60. Rxf5 {[%clk 0:00:23]}  Ke6 {[%clk 0:00:06]} 61. Rf8 {[%clk 0:00:23]}  Ra5 {[%clk 0:00:06]} 62. Rh8 {[%clk 0:00:22]}  Ra3+ {[%clk 0:00:06]} 63. Kf2 {[%clk 0:00:23]}  Kf5 {[%clk 0:00:06]} 64. Rxh6 {[%clk 0:00:23]}  e4 {[%clk 0:00:07]} 65. Rb6 {[%clk 0:00:22]}  Ra2+ {[%clk 0:00:05]} 66. Ke3 {[%clk 0:00:20]}  Ra3+ {[%clk 0:00:05]} 67. Kf2 {[%clk 0:00:20]}  Ra5 {[%clk 0:00:05]} 68. g4+ {[%clk 0:00:18]}  Ke5 {[%clk 0:00:04]} 69. Rg6 {[%clk 0:00:18]}  Kd4 {[%clk 0:00:04]} 70. Re6 {[%clk 0:00:16]}  Ra2+ {[%clk 0:00:03]} 71. Kg3 {[%clk 0:00:17]}  e3 {[%clk 0:00:04]} 72. h4 {[%clk 0:00:17]}  gxh4+ {[%clk 0:00:03]} 73. Kxh4 {[%clk 0:00:17]}  e2 {[%clk 0:00:03]} 74. g5 {[%clk 0:00:16]}  Kd3 {[%clk 0:00:03]} 75. Kh5 {[%clk 0:00:16]}  Ra4 {[%clk 0:00:02]} 76. Rxe2 {[%clk 0:00:15]}  Kxe2 {[%clk 0:00:03]} 77. g6 {[%clk 0:00:16]}  Kf3 {[%clk 0:00:03]} 78. g7 {[%clk 0:00:16]}  Rg4 {[%clk 0:00:02]} 79. Kh6 {[%clk 0:00:15]}  Kf4 {[%clk 0:00:03]} 80. Kh7 {[%clk 0:00:16]}  Rh4+ {[%clk 0:00:03]} 81. Kg8 {[%clk 0:00:16]}  Kf5 {[%clk 0:00:02]} 82. Kf7 {[%clk 0:00:16]}  Rh7 {[%clk 0:00:01]} 83. Kf8 {[%clk 0:00:17]}  Rxg7 {[%clk 0:00:01]} 84. Kxg7 {[%clk 0:00:17]} 1/2-1/2

[Event "November 21 Early 2023"]
[Site "https://www.chess.com"]
[Date "2023.11.21"]
[Round "8"]
[White "Yeletsky, Ivan"]
[Black "Manukian, Artak"]
[Result "1-0"]
[Board "57"]
[TimeControl "180+1"]
[WhiteFideId "24180327"]
[BlackFideId "13301373"]
[WhiteElo "2358"]
[BlackElo "2030"]
[WhiteTeam "RUS"]
[BlackTeam "ARM"]
[WhiteClock "0:02:39"]
[BlackClock "0:01:40"]

1. e4 {[%clk 0:03:00]}  c6 {[%clk 0:02:55]} 2. d3 {[%clk 0:02:59]}  d5 {[%clk 0:02:41]} 3. Nc3 {[%clk 0:02:59]}  Nf6 {[%clk 0:02:41]} 4. e5 {[%clk 0:02:55]}  Nfd7 {[%clk 0:02:40]} 5. f4 {[%clk 0:02:54]}  e6 {[%clk 0:02:40]} 6. Nf3 {[%clk 0:02:54]}  c5 {[%clk 0:02:40]} 7. g3 {[%clk 0:02:54]}  Nc6 {[%clk 0:02:40]} 8. Bh3 {[%clk 0:02:54]}  Rb8 {[%clk 0:02:38]} 9. a4 {[%clk 0:02:53]}  a6 {[%clk 0:02:38]} 10. O-O {[%clk 0:02:51]}  b5 {[%clk 0:02:38]} 11. axb5 {[%clk 0:02:51]}  axb5 {[%clk 0:02:39]} 12. f5 {[%clk 0:02:46]}  b4 {[%clk 0:02:32]} 13. fxe6 {[%clk 0:02:45]}  bxc3 {[%clk 0:02:23]} 14. exf7+ {[%clk 0:02:44]}  Ke7 {[%clk 0:02:21]} 15. Bg5+ {[%clk 0:02:43]}  Nf6 {[%clk 0:02:20]} 16. exf6+ {[%clk 0:02:42]}  gxf6 {[%clk 0:02:21]} 17. Qe2+ {[%clk 0:02:42]}  Ne5 {[%clk 0:02:02]} 18. Qxe5+ {[%clk 0:02:41]}  Kxf7 {[%clk 0:01:57]} 19. Bxf6 {[%clk 0:02:41]}  Bd6 {[%clk 0:01:51]} 20. Ng5+ {[%clk 0:02:42]}  Kg6 {[%clk 0:01:50]} 21. Bf5+ {[%clk 0:02:39]}  Kh6 {[%clk 0:01:40]} 22. Nf7+ {[%clk 0:02:39]} 1-0